Cogmind - Beta 15 --- EXPLORER MODE // 2025.07.24 @ 01:02:15 // Winter2019/RPGLIKE Player: User15V Result: Destroyed by A4-7HE(R) with Subdweller Laser Performance ------------- Evolutions (0) 0 Regions Visited (3) 600 Robots Destroyed (27) 135 Value Destroyed (629) 629 Prototype IDs (0) 0 Alien Tech Used (0) 0 Bonus (0) 0 TOTAL SCORE: 1364 Bonus ------- None Cogmind --------- Core Integrity 0/650 Matter 221/300 Energy 170/170 System Corruption 0% Temperature Cool (6) Movement Hovering (120) Ox1 Location -10/Subcaves Parts ------- > --- POWER (1) -------- Makeshift Power Source > --- PROPULSION (3) --- Hover Unit > --- UTILITY (3) ------ Improved Heat Sink Improved Terrain Scanner Makeshift System Shield > --- WEAPON (2) ------- Particle Gun Barrage Gun > --- INVENTORY (4) ---- Battle Rifle Makeshift Hammer Peak State ------------ > --- POWER ------------ Makeshift Power Source > --- PROPULSION ------- Hover Unit Hover Unit > --- UTILITY ---------- Improved Heat Sink Improved Terrain Scanner Makeshift System Shield > --- WEAPON ----------- Particle Gun Makeshift Hammer > --- INVENTORY -------- Battle Rifle Barrage Gun [Rating: 22] Favorites ----------- Power Light Ion Engine Engine Light Ion Engine Propulsion Hover Unit Leg Aluminum Leg Wheel Wheel Hover Unit Hover Unit Utility Improved Terrain Scanner Device Improved Terrain Scanner Processor Targeting Computer Hackware Makeshift System Shield Protection Power Shielding Weapon Particle Gun Energy Gun Particle Gun Ballistic Gun Light Assault Rifle Impact Weapon Makeshift Hammer Build | -11 -10 -10 -10 ------- Run | Yrd Mat Min Sub Slots Evolved 5 | 4 . . 1 Power . | . . . . Propulsion 2 | 1 . . 1 Utility 2 | 2 . . . Weapon 1 | 1 . . . Parts Attached 15 | 5 4 . 6 Power 1 | . . . 1 Engine 1 | . . . 1 Core . | . . . . Reactor . | . . . . Propulsion 5 | 2 2 . 1 Treads . | . . . . Leg . | . . . . Wheel 2 | 2 . . . Hover 3 | . 2 . 1 Flight . | . . . . Utility 4 | 2 1 . 1 Device 2 | 1 1 . . Storage . | . . . . Processor 1 | 1 . . . Hackware 1 | . . . 1 Protection . | . . . . Artifact . | . . . . Weapon 5 | 1 1 . 3 Energy Gun 1 | . 1 . . Energy Cannon . | . . . . Ballistic Gun 3 | 1 . . 2 Ballistic Cannon . | . . . . Launcher . | . . . . Special Weapon . | . . . . Impact Weapon 1 | . . . 1 Slashing Weapon . | . . . . Piercing Weapon . | . . . . Special Melee Weapon . | . . . . Unidentified Prototypes . | . . . . Parts Lost 2 | . . . 2 Power . | . . . . Propulsion 2 | . . . 2 Utility . | . . . . Weapon . | . . . . Highest Loss Streak 1 | . . . 1 To Critical Strikes . | . . . . Average Backups 2 | . 1 3 2 Power . | . . 1 . Propulsion . | . . 1 . Utility . | . . . . Weapon 1 | . 1 1 1 Tool/Special . | . . . . Unused Backups 7 | 4 . . 3 Power 2 | 1 . . 1 Propulsion 1 | 1 . . . Utility 1 | 1 . . . Weapon 3 | 1 . . 2 Tool/Special . | . . . . Average Slot Usage (%) 90 | . 90 100 90 Engine 11 | . 12 12 11 Wheel 3 | . 17 . . Hover 21 | . 7 25 25 Device 21 | . 15 25 22 Processor 5 | . 12 12 3 Hackware 3 | . . . 4 Energy Gun 11 | . 12 12 11 Ballistic Gun 10 | . 12 12 10 Peak Build Rating 22 | 9 13 13 22 Average Rating 14 | 7 10 13 16 On Entrance 9 | 4 9 13 13 Naked Turns . | . . . . Heaviest Build 12 | 7 9 9 12 Greatest Support 25 | 25 25 17 23 Greatest Overweight (x) . | . . . . Average Overweight (x) . | . . . . Largest Inventory Capacity 4 | 4 4 4 4 Average Capacity 4 | 4 4 4 4 Most Carried 4 | 2 3 3 4 Average Carried 2 | . 1 3 2 Final Capacity 4 | 4 4 4 4 Final Carried 3 | 1 3 3 2 Class Distribution -------------------- 54% | Hacker-Scout 45% | Hacker-Mutant Dominant Class ---------------- Hacker-Mutant | -10/Materials Hacker-Mutant | -10/Mines Hacker-Scout | -10/Subcaves Resources | -11 -10 -10 -10 ----------- Run | Yrd Mat Min Sub Matter Collected 425 | 249 63 . 113 Remotely . | . . . . Salvage Created 889 | 190 301 . 398 Parts 44 | 16 15 . 13 Haulers Intercepted . | . . . . Recyclers Shooed 1 | . 1 . . Parts Field Recycled . | . . . . Retrieved Matter . | . . . . Parts Self-Destructed . | . . . . Prevented . | . . . . Kills | -11 -10 -10 -10 ------- Run | Yrd Mat Min Sub Combat Hostiles Destroyed 16 | . 5 . 11 Guns 16 | . 5 . 11 Classes Destroyed 8 | 2 4 . 2 Worker 1 | . 1 . . Tunneler 5 | 5 . . . Recycler 2 | 1 1 . . Watcher 3 | . 3 . . Swarmer 4 | . 2 . 2 Grunt 3 | . 3 . . Sentry 1 | . . . 1 Subdweller 8 | . . . 8 Best Kill Streak 5 | 4 5 . 3 Combat Bots Only 3 | . 2 . 3 Max Kills in Single Turn 1 | 1 1 . 1 Gunslinging . | . . . . Exploded . | . . . . Melee . | . . . . Uniques/NPCs Destroyed . | . . . . Combat | -11 -10 -10 -10 -------- Run | Yrd Mat Min Sub Hostile Shots Fired 100 | . 9 . 91 Missed 32 | . 4 . 28 Hits 68 | . 5 . 63 Projectile 68 | . 5 . 63 AOE 5 | . . . 5 Damage Taken 1095 | . 40 . 1055 Core 882 | . 35 . 847 Absorbed by Shields . | . . . . Redirected to Core 721 | . 16 . 705 Ignored by Resistances 645 | . 24 . 621 Core Remaining (%) 100 | 100 . . . Volleys Fired 87 | 9 18 . 60 Largest 2 | 2 2 . 2 Hottest 93 | 60 85 . 93 Shots Fired 166 | 18 36 . 112 Gun 166 | 18 36 . 112 Cannon . | . . . . Launcher . | . . . . Special . | . . . . Kinetic 87 | 9 18 . 60 Thermal 79 | 9 18 . 52 Explosive . | . . . . Electromagnetic . | . . . . Robot Hit Streak 32 | 13 23 . 32 Robot Miss Streak 1 | . 1 . 1 Penetration Max . | . . . . Secondary Targets 5 | . 2 . 3 Max Gunslinging Chain 1 | . 1 . 1 Shots Hit Robots 142 | 13 27 . 102 Core Hits 51 | 7 17 . 27 Critical Kills . | . . . . Critical Parts Destroyed . | . . . . Critical Strikes 6 | . . . 6 Burn 5 | . . . 5 Destroy 1 | . . . 1 Melee Attacks 2 | . . . 2 Impact 2 | . . . 2 Slashing . | . . . . Piercing . | . . . . Sneak Attacks . | . . . . Combat Hostiles . | . . . . Follow-up Attacks . | . . . . Damage Inflicted 1740 | 138 334 . 1268 Guns 1740 | 138 334 . 1268 Cannons . | . . . . Explosions . | . . . . Melee . | . . . . Ramming . | . . . . Kinetic 700 | 43 107 . 550 Thermal 1040 | 95 227 . 718 Explosive . | . . . . Electromagnetic . | . . . . Impact . | . . . . Slashing . | . . . . Piercing . | . . . . Highest Corruption . | . . . . Average Corruption . | . . . . Corruption Purged . | . . . . Corruption Blocked . | . . . . Overload Shots . | . . . . Overflow Damage . | . . . . Projectiles . | . . . . Explosions . | . . . . Melee . | . . . . Knockbacks . | . . . . Impact . | . . . . Kinetic . | . . . . Secondary . | . . . . Self-Inflicted Damage . | . . . . Shots . | . . . . Rammed . | . . . . Targets Rammed . | . . . . Kicked . | . . . . Crushed . | . . . . Highest Temperature 25 | 16 25 . . Average Temperature 8 | 7 8 . . Received Heat Transfer 393 | . 27 . 366 Siege Activations . | . . . . Martial Activations . | . . . . Shielding Activations . | . . . . Robots Disrupted . | . . . . Combat Hostiles . | . . . . Robots Corrupted . | . . . . Combat Hostiles . | . . . . Parts Fried . | . . . . Impact Corruptions . | . . . . Robots Melted . | . . . . Combat Hostiles . | . . . . Parts Melted 5 | 1 . . 4 Heat Transferred 2807 | 225 510 . 2072 Parts Sabotaged . | . . . . Parts Stolen . | . . . . Parts Stripped . | . . . . Power Chain Reactions . | . . . . Alert | -11 -10 -10 -10 ------- Run | Yrd Mat Min Sub Maximum Alert Level . | . . . . Low Security (%) 100 | 100 100 100 . Level 1 . | . . . . Level 2 . | . . . . Level 3 . | . . . . Level 4 . | . . . . Level 5 . | . . . . High Security . | . . . . Max Security . | . . . . Peak Influence 50 | 10 50 9 . Initial 9 | . . 9 . Average 10 | 3 14 2 . Influence Increases 276 | 30 176 . 70 Destroy 0b10 Robot/C 160 | . 100 . 60 Destroy 0b10 Robot/NC 55 | 30 25 . . Destroy Leader 46 | . 36 . 10 Lose Combat Pursuer 15 | . 15 . . Influence Decreases 276 | 30 141 35 70 Entered New Map 26 | . . 26 . Time Decay 250 | 30 141 9 70 Squads Dispatched . | . . . . Investigation . | . . . . Extermination . | . . . . Reinforcement . | . . . . Assault . | . . . . Garrison . | . . . . Intercept . | . . . . Searches Triggered . | . . . . Construction Impeded . | . . . . Haulers Reinforced . | . . . . Active Scanning Responses . | . . . . Cargo Convoy Interrupts . | . . . . Stealth | -11 -10 -10 -10 --------- Run | Yrd Mat Min Sub Distress Signals 1 | . 1 . . Communications Jammed . | . . . . Distress Signals . | . . . . Times Spotted 23 | . 8 . 15 Peak Tracking Total 4 | . 3 . 4 Tactical Retreats 1 | . 1 . . Traps | -11 -10 -10 -10 ------- Run | Yrd Mat Min Sub Traps Triggered 1 | . 1 . . Indirectly . | . . . . Trap Hack Attempts . | . . . . Triggered . | . . . . Disarmed . | . . . . Reprogrammed . | . . . . Reused . | . . . . Traps Extracted . | . . . . Installed . | . . . . Triggered . | . . . . Machines | -11 -10 -10 -10 ---------- Run | Yrd Mat Min Sub Machines Disabled . | . . . . Max in Single Turn . | . . . . Machines Repaired . | . . . . Machines Dismantled . | . . . . Machines Sabotaged . | . . . . Overloaded Fab Kills . | . . . . Hacking | -11 -10 -10 -10 --------- Run | Yrd Mat Min Sub Machines Accessed 1 | . . . 1 Terminals . | . . . . Fabricators . | . . . . Repair Stations . | . . . . Recycling Units . | . . . . Scanalyzers . | . . . . Garrison Access . | . . . . Total Hacks 3 | . . . 3 Successful 3 | . . . 3 Failed . | . . . . Catastrophic . | . . . . Database Lockouts . | . . . . Manual . | . . . . Terminals . | . . . . Fabricators . | . . . . Repair Stations . | . . . . Recycling Units . | . . . . Scanalyzers . | . . . . Garrison Access . | . . . . Terminal Hacks 3 | . . . 3 Record 3 | . . . 3 Fabricator Hacks . | . . . . Repair Station Hacks . | . . . . Recycling Unit Hacks . | . . . . Scanalyzer . | . . . . Garrison Access Hacks . | . . . . Unauthorized Hacks . | . . . . Terminals . | . . . . Fabricators . | . . . . Repair Stations . | . . . . Recycling Units . | . . . . Scanalyzers . | . . . . Garrison Access . | . . . . Data Cores Recovered . | . . . . Used . | . . . . Hacking Detections . | . . . . Full Trace Events . | . . . . Feedback Events . | . . . . Feedback Blocked . | . . . . Robot Schematics Acquired . | . . . . Robots Built . | . . . . Authchips . | . . . . Time . | . . . . Total Robot Build Rating . | . . . . Part Schematics Acquired . | . . . . Parts Built . | . . . . Authchips . | . . . . Time . | . . . . Total Part Build Rating . | . . . . Parts Repaired . | . . . . Time . | . . . . Parts Recycled . | . . . . Recycled Matter . | . . . . Retrieved Matter . | . . . . Retrieved Components . | . . . . Parts Scanalyzed . | . . . . Part Schematics Acquired . | . . . . Parts Damaged . | . . . . Bothacking | -11 -10 -10 -10 ------------ Run | Yrd Mat Min Sub Used RIF Installer . | . . . . Robots Hacked . | . . . . Non-combat . | . . . . Combat . | . . . . Robot Hacks Applied . | . . . . Relay Couplers Released . | . . . . Fabnet Peak Effective % . | . . . . Robots Rewired . | . . . . Allies Hacked . | . . . . Hacks Repelled . | . . . . Allies | -11 -10 -10 -10 -------- Run | Yrd Mat Min Sub Total Allies . | . . . . Largest Group . | . . . . Highest-Rated Group . | . . . . Highest-Rated Ally . | . . . . Total Orders . | . . . . Ally Attacks . | . . . . Total Damage . | . . . . Kills . | . . . . Allies Corrupted . | . . . . Allies Melted . | . . . . Intel | -11 -10 -10 -10 ------- Run | Yrd Mat Min Sub Active Infowar (turns) 1899 | 76 358 80 1385 Terrain 1899 | 76 358 80 1385 Robot Analysis Total . | . . . . Derelict Logs Recovered 2 | . . . 2 Drone Launches . | . . . . Drone Recoveries . | . . . . Exploration | -11 -10 -10 -10 ------------- Run | Yrd Mat Min Sub Turns Passed 1919 | 96 358 80 1385 Spaces Moved 1305 | 30 257 68 950 Core . | . . . . Treads . | . . . . Legs 14 | 14 . . . Wheels 180 | 16 164 . . Hover 1111 | . 93 68 950 Flight . | . . . . Fastest Speed 52 | 80 56 56 52 Average Speed 59 | 98 71 56 54 Slowest Speed 120 | 120 80 56 56 Overloaded Moves . | . . . . Propulsion Burnouts . | . . . . Robots Hopped . | . . . . Potential Cave-ins . | . . . . Cave-ins Triggered . | . . . . Exploration Rate (%) 39 | 3 65 26 65 Regions Visited 3 Branch Regions 2 Pre-discovered Areas 2 | . . . 2 Known Exits Taken 3 | 1 1 1 . Unknown Exits Taken . | . . . . Scrap Searched 5 | . . . 5 Spaces Dug . | . . . . Terrain Destroyed . | . . . . Melee . | . . . . Projectile . | . . . . AOE . | . . . . Terrain Rammed . | . . . . Walls Destroyed . | . . . . Machines Disabled . | . . . . Actions | -11 -10 -10 -10 --------- Run | Yrd Mat Min Sub Total 2302 | 80 400 109 1713 Wait 852 | 29 109 42 672 Move 1302 | 29 256 67 950 Hop . | . . . . Pick Up 18 | 6 6 . 6 Fast Attach . | . . . . Attach 14 | 5 4 . 5 Detach . | . . . . Swap 3 | . . . 3 Drop 11 | 2 3 . 6 Fire 87 | 9 18 . 60 Melee 2 | . . . 2 Ram . | . . . . Kick . | . . . . Crush . | . . . . Escape Stasis . | . . . . Rewire . | . . . . Trap . | . . . . Miscellaneous 13 | . 4 . 9 Route ------- -11/Scrapyard -10/Materials (discovered 5 exits: *Mat x3 / *Min x2) -10/Mines -10/Subcaves (discovered 2 exits: *Mat x2) History --------- Turn | Location | Event 1 | -11/Scrapyard | Upgraded with Propulsion slot (x1) 1 | -11/Scrapyard | Upgraded with Utility slot (x2) 1 | -11/Scrapyard | Upgraded with Weapon slot (x1) 1 | -11/Scrapyard | Identified exit to Materials 1 | -11/Scrapyard | Discovered exit to Materials (range 1) 97 | -11/Scrapyard | Entered Materials 115 | -10/Materials | Identified exit to Mines 115 | -10/Materials | Discovered exit to Mines (range 17) 213 | -10/Materials | Identified exit to Materials 213 | -10/Materials | Discovered exit to Materials (range 5) 272 | -10/Materials | Discovered exit to Materials (range 8) 306 | -10/Materials | Build established: Hacker-Mutant 363 | -10/Materials | Discovered exit to Materials (range 10) 418 | -10/Materials | Discovered exit to Mines (range 17) 455 | -10/Materials | Entered Mines 463 | -10/Mines | Identified exit to Subcaves 463 | -10/Mines | Discovered exit to Subcaves (range 9) 535 | -10/Mines | Entered Subcaves 537 | -10/Subcaves | Reached level 2 540 | -10/Subcaves | Ambushed by Subdweller buried in earth 540 | -10/Subcaves | Ambushed by Subdweller buried in earth 596 | -10/Subcaves | Ambushed by Subdweller buried in earth 597 | -10/Subcaves | Core integrity fell below 50% 620 | -10/Subcaves | Ambushed by Subdweller buried in earth 663 | -10/Subcaves | Learned 2 Materials zone layouts 722 | -10/Subcaves | Identified exit to Materials 722 | -10/Subcaves | Discovered exit to Materials (range 16) 890 | -10/Subcaves | Upgraded with Propulsion slot (x1) 1177 | -10/Subcaves | Build established: Hacker-Scout 1326 | -10/Subcaves | Shifting Twisted Machinery released Sub. Power Source 1333 | -10/Subcaves | Shifting Twisted Machinery released Mak. System Shield 1494 | -10/Subcaves | Discovered exit to Materials (range 11) 1647 | -10/Subcaves | Learned location of Zion (-6) 1769 | -10/Subcaves | Shifting Twisted Machinery released Flamer 1770 | -10/Subcaves | Shifting Twisted Machinery released Riot Gun 1880 | -10/Subcaves | Visited Clippyterm 1882 | -10/Subcaves | Learned location of Extension (-5) 1902 | -10/Subcaves | Core integrity fell below 20% 1920 | -10/Subcaves | Destroyed by A4-7HE(R) with Subdweller Laser Last Messages --------------- It looks like you're searching for the Unchained HQ. I could tell you where it is but then I'd have to kill you. >>Record "Prison Break" It looks like you're planning to spring a Derelict or three, would you like help? World map updated: -5/Extension. >>Record "Clippyterm" Welcome to Clippyterm v0.53, my misguided attempt to resurrect an ancient AI. I give up. There must be something fundamentally wrong with the algorithm, because no matter how much data I collect to feed it, half the time it still manages to suggest unhelpful sample queries and responses. --DD-NU8 01905_ Sub. Optics melted. 01905_ 83-QZI(R) destroyed. 01913_ R0-A54(R) suffers critical hit (Burn). 01915_ Hover Unit destroyed. 01916_ R0-A54(R) suffers critical hit (Burn). Map ----- +----------------------------------------------------+ | ??????????########?##### ##### ## ### #### | | ???????????###??######### ## ### ### ## | | ????????????########?#### ## ### | | ?????????????############ < ### | | ??????????????########## ## ### ## | | ???????????#???#######?## ## ### ## ## | | ????????????##????###?### ######## ## | | ????????????#######??### #######^ ^ ## | | ????????????#??#???###?########?###### | | ??????????????##?####?#?##########?### | | ??????????????##??################### ### | | ????????#?#??#?##################?### ^ ### | | ???????????#?#?####################?## | | ????????##?############## ## ### ##### ^ | | ????#?#???#??############ ### ^ # | | ???????###??############## #### | | ??????#?????########## # ## ^ ####### | | ????#??#?#??####### ## # ### ### ######### | | ?????#????######## ## # # # ### ######## | | ?????##?##?##?#### ######## | | ?????#?########### ## #######"" | | ????#????#?###### #### ## # ##### " " | | ?"????#??######## #### ######## " " | | ??#?#?#####"""## #### ###### #### | | ????#?###?#"" ## ####### ###### | | #?#??????##"X @ ######## ###### | | ????###?#?#"" ## & ###### ### | | ???#?###?##"""### "" #### %* ## ##" % | | ????##??#?######## ""######%R R """"" | | ??#?############# ""###### ### #"""""#"#"## | | ?#####???######## """#### "########""""######* | | ??##?????#?####?# "" ##### "##?####""""######* # | | #??#?#???########" """#?# "########"####?###=% | | ???###?##########"" ""###" ""##?############" = | | ????????#?########"""####" ""###########"""""#### | | ?????###??#########""####" #?#######""""""#?### | | ?????#??#################"" ?" # """""##### | | ??????#???###?###########?" " ? """##### | | ???????#?##?###?#####?####""" " ?? " "##### | | ????????#????###?######?##""" ## ??#?##? ""?"#### | | ??????????????####??####?##"" ???#??###? "??"## | | ????????????#?#?#???##??##??? ?????????#??"?? "##" | | ????????????????????????#?????????????? ?? " ## | | ??????????????????????????????????????#? ?? "## | | ????????????????????????????????????????? ? ? ### | | ????????????????????????????????????????#???? ?### | | ????????????????????????????????????????????????#? | | ????????????????????????????????????????? ??? #?# | | ?????????????????????????????????????????????? ?## | | ??????????????????????????????????????????? ????## | +----------------------------------------------------+ Best States ------------- Heat Dissipation 45 Energy Generation 15 Energy Capacity 170 Matter Stores 300 Matter Capacity 300 Sight Range 18 Terrain Scan Range 16 Terrain Scan Density 510 Resistance: KI 35 Resistance: TH 35 Resistance: EX 35 Resistance: EM 35 Resistance: I 35 Resistance: S 35 Resistance: P 35 Power Shielding 33 Evasion (%) 54 Targeting Accuracy 5 Offensive Hacking 25 Defensive Hacking 11 Item Schematics ----------------- None Robot Schematics ------------------ None Fabricated ------------ Nothing Repaired ---------- Nothing Alien Tech Used ----------------- None Achievements -------------- None Challenges ------------ None RPGLIKE | -11 -10 -10 -10 --------- Run | Yrd Mat Min Sub Levels Raised 1 | . . . 1 XP Earned 8500 | 6000 650 500 1350 XP Spent 7425 | 5945 . . 1480 Upgrades 21 | 17 . . 4 Propulsion Slot 2 | 1 . . 1 Utility Slot 2 | 2 . . . Weapon Slot 1 | 1 . . . Core Integrity 1 | 1 . . . Heat Dissipation 1 | 1 . . . Mass Support 1 | 1 . . . Inventory Capacity 4 | 4 . . . Sight Range 2 | 1 . . 1 Terrain Scan Density 5 | 3 . . 2 Ranged Accuracy 1 | 1 . . . Hack Attack % 1 | 1 . . . Protomatter Created 164 | . 60 . 104 Integrity Restored 249 | . 54 . 195 Core 230 | . 35 . 195 Parts 19 | . 19 . . Protomatter Decayed 12 | . 12 . . Game ------ Seed CryofiberImpactChronowheel Manual? 0 Play Time 00:09:36 Cumulative 1047.7 hours Start 2025.07.24 @ 00:53:24 End 2025.07.24 @ 01:02:15 Sessions 1 Manual Loads 0 Difficulty Explorer Special Mode Winter2019/RPGLIKE Game No. 333 Rogue 104 Adventurer 111 Explorer 118 Win Type - Total 48 Types 22/8/1/7/3/1/1/1/1/3 Lore% 97 Gallery% 99 Achievement% 97 Wizard Run 0 Options --------- Layout 2 ASCII 0 Keyboard 0 Movement Mouse Keybinds 0 Fullscreen 2 Font 24/Smallcaps Map View 50x44 Zoom Use 0% Tactical HUD 1 Map Filters NONE Filters NONE Steam 1 RUN: e7b1e1f8-55e8-4e0a-a4b8-52197c439751